bitfinex-derivatives/quotes_BTCF0:USTF0_20250505
["timestamp","ask_amount","ask_price","bid_price","bid_amount"]
[1746409266245,0.3608,94098.0,94097.0,0.002]
[1746409266447,0.3934,94098.0,94094.0,0.007]
[1746409266644,0.5648,94097.0,94094.0,0.004]
[1746409267148,0.6848,94097.0,94094.0,0.2165198]
[1746409267353,0.6798,94097.0,94096.0,0.212517]
[1746409267853,0.5036,94097.0,94096.0,0.212517]
[1746409268147,0.3836,94097.0,94096.0,0.212517]
[1746409268754,0.3836,94097.0,94096.0,0.399217]
[1746409269755,0.3846,94097.0,94096.0,0.399217]
[1746409269960,0.3846,94097.0,94096.0,0.596217]
[1746409270762,0.3826,94097.0,94096.0,0.596217]
[1746409270963,0.3846,94097.0,94096.0,0.596217]
[1746409271364,0.003,94097.0,94096.0,0.596217]
[1746409272262,0.003,94097.0,94096.0,0.716217]
[1746409272855,0.3716,94105.0,94099.0,0.0531274]
[1746409273054,0.3716,94105.0,94101.0,0.2125055]
[1746409273357,0.3716,94105.0,94100.0,0.1817]
[1746409273863,0.0531,94103.0,94100.0,0.1817]
[1746409274162,0.3612,94102.0,94099.0,0.2125096]
[1746409274364,0.3612,94102.0,94100.0,0.2125064]
[1746409274863,0.3612,94102.0,94096.0,0.1817]
[1746409275158,0.3608,94097.0,94078.0,0.53124984]
[1746409275359,0.3608,94082.0,94078.0,0.21653609]
[1746409275563,0.5824,94081.0,94078.0,0.21653609]
[1746409275861,0.68868404,94081.0,94078.0,0.42909369]
[1746409276062,0.68868404,94081.0,94078.0,0.21653609]
[1746409276263,0.2125554,94079.0,94078.0,0.21653609]
[1746409276460,0.1,94071.0,94070.0,0.08664818]
[1746409276670,0.4608,94071.0,94070.0,0.08664818]
[1746409276852,0.56800795,94071.0,94070.0,0.08664818]
[1746409277163,0.68800795,94071.0,94070.0,0.08664818]
[1746409277349,0.68800795,94071.0,94063.0,0.2125914]
[1746409277551,0.3894,94070.0,94063.0,0.2125914]
[1746409277749,0.3894,94070.0,94057.0,0.1886]
[1746409277963,0.0532,94065.0,94058.0,0.0531506]
[1746409278166,0.3834,94064.0,94061.0,0.0531486]
[1746409278366,0.3834,94064.0,94063.0,0.2125915]
[1746409278564,0.4692,94064.0,94063.0,0.2125915]
[1746409278969,0.416,94064.0,94063.0,0.2125915]
[1746409279663,0.3834,94064.0,94063.0,0.2125915]
[1746409279863,0.43761807,94064.0,94063.0,0.2125915]
[1746409280171,0.43761807,94064.0,94062.0,0.1968]
[1746409280469,0.3608,94063.0,94051.0,0.0531545]
[1746409280770,0.0532,94057.0,94054.0,0.0531529]
[1746409280967,0.3682,94062.0,94058.0,0.2126018]
[1746409281166,0.12,94062.0,94059.0,0.2125999]
[1746409281472,0.10631172,94061.0,94057.0,0.2126043]
[1746409281968,0.0531542,94052.0,94013.0,0.30718154]
[1746409282265,0.08862375,94035.0,94034.0,0.2126571]
[1746409282471,0.3608,94039.0,94038.0,0.212648]
[1746409283964,0.3668,94039.0,94012.0,0.00159553]
[1746409284170,0.3608,94019.0,94018.0,0.2126933]
[1746409285365,0.3608,94019.0,94012.0,0.00159553]
[1746409285871,0.3608,94019.0,94018.0,0.2126933]
[1746409286071,0.3638,94019.0,94018.0,0.2126933]
[1746409286566,0.3608,94019.0,94015.0,0.0531749]
[1746409286768,0.47016204,94019.0,94012.0,0.00159553]
[1746409286977,0.3608,94015.0,94012.0,0.00159553]
[1746409287271,0.3608,94015.0,94014.0,0.2127023]
[1746409288663,0.3608,94015.0,94014.0,0.07147513]
[1746409288969,0.3608,94015.0,94013.0,0.1853]
[1746409289170,0.36860355,94015.0,94013.0,0.1853]
[1746409289370,0.37460355,94015.0,94013.0,0.1853]
[1746409289763,0.37460355,94015.0,94014.0,0.2127023]
[1746409289973,0.37460355,94015.0,94013.0,0.1853]
[1746409290972,0.40720355,94015.0,94012.0,0.00159553]
[1746409291174,0.10636713,94014.0,94012.0,0.00159553]
[1746409291878,0.1848,94013.0,94012.0,0.21430233]
[1746409292181,0.1848,94013.0,94012.0,0.00159553]
[1746409293259,0.1908,94013.0,94012.0,0.00159553]
[1746409293472,0.3857,94013.0,94012.0,0.21430233]
[1746409293666,0.006,94013.0,94012.0,0.21430233]
[1746409294169,0.006,94013.0,94012.0,0.33430233]
[1746409299480,0.006,94013.0,94012.0,0.12159553]
[1746409299980,0.3784,94013.0,94012.0,0.12159553]
[1746409300182,0.3784,94013.0,94012.0,0.00159553]
[1746409300382,0.433,94013.0,94012.0,0.00159553]
[1746409304069,0.4656,94013.0,94012.0,0.00159553]
[1746409304278,0.67833683,94013.0,94012.0,0.00159553]
[1746409304575,0.68901796,94013.0,94012.0,0.00159553]
[1746409305083,0.70181796,94013.0,94012.0,0.00159553]
[1746409305681,0.68901796,94013.0,94012.0,0.00159553]
[1746409305869,0.63441796,94013.0,94012.0,0.00159553]
[1746409306070,0.68901796,94013.0,94012.0,0.00159553]
[1746409306486,0.70181796,94013.0,94012.0,0.00159553]
[1746409306672,0.68901796,94013.0,94012.0,0.00159553]
[1746409306874,0.70181796,94013.0,94012.0,0.00159553]
[1746409307077,0.58264996,94013.0,94012.0,0.00159553]
[1746409309185,0.59544996,94013.0,94012.0,0.00159553]
[1746409309882,0.58264996,94013.0,94012.0,0.00159553]
[1746409310182,0.58124996,94013.0,94012.0,0.00159553]
[1746409310382,0.58264996,94013.0,94012.0,0.00159553]
[1746409311481,0.58124996,94013.0,94012.0,0.00159553]
[1746409311785,0.58264996,94013.0,94012.0,0.00159553]
[1746409312080,0.58264996,94013.0,94000.0,0.1]
[1746409312081,0.64544996,94013.0,94000.0,0.1]
[1746409312273,0.414,94001.0,94000.0,0.1]
[1746409312474,0.4608,94001.0,94000.0,0.1]
[1746409312883,0.55298241,94001.0,94000.0,0.1]
[1746409313079,0.55438241,94001.0,94000.0,0.1]
[1746409313586,0.54430922,94001.0,94000.0,0.1]
[1746409313887,0.60050922,94001.0,94000.0,0.1]
[1746409314078,0.49552681,94001.0,94000.0,0.312734]
[1746409314581,0.46152681,94001.0,94000.0,0.312734]
[1746409314783,0.46152681,94001.0,94000.0,0.684634]
[1746409315083,0.46452681,94001.0,94000.0,0.684634]
[1746409316676,0.49712681,94001.0,94000.0,0.684634]
[1746409316878,0.44392681,94001.0,94000.0,0.2877]
[1746409317488,0.49712681,94001.0,94000.0,0.2877]
[1746409317678,0.49712681,94001.0,94000.0,0.500434]
[1746409318387,0.49712681,94001.0,94000.0,0.2877]
[1746409318597,0.49712681,94001.0,94000.0,0.23796938]
[1746409320585,0.49712681,94001.0,94000.0,0.28493134]
[1746409321587,0.41132681,94001.0,94000.0,0.68526534]
[1746409321890,0.41132681,94001.0,94000.0,0.63830338]
[1746409322083,0.41132681,94001.0,94000.0,0.75830338]
[1746409322286,0.09592,94017.0,94013.0,0.2127046]
[1746409322485,0.4608,94014.0,94013.0,0.2127046]
[1746409322791,0.50485431,94014.0,94013.0,0.2127046]
[1746409323182,0.50485431,94014.0,94013.0,0.7127046]
[1746409323690,0.50785431,94014.0,94013.0,0.7127046]
[1746409323983,0.51085431,94014.0,94013.0,0.7127046]
[1746409324386,0.54345431,94014.0,94013.0,0.3124]
[1746409324585,0.92575431,94014.0,94013.0,0.3124]
[1746409324785,0.94635431,94014.0,94013.0,0.3124]
[1746409325084,0.56405431,94014.0,94013.0,0.5251046]
[1746409325283,0.61085431,94014.0,94013.0,0.7231046]
[1746409325479,0.0015,94030.0,94013.0,0.66371669]
[1746409325684,0.0015,94030.0,94029.0,0.2126684]
[1746409325685,0.04659172,94030.0,94029.0,0.2126684]
[1746409325883,0.0015,94030.0,94029.0,0.7968684]
[1746409326100,0.0466,94030.0,94029.0,0.5062]
[1746409326389,0.3078677,94030.0,94029.0,0.12]
[1746409326586,0.2434677,94030.0,94029.0,0.12]
[1746409326777,0.3108677,94030.0,94029.0,0.12]
[1746409326986,0.88216615,94030.0,94029.0,0.12]
[1746409327192,1.00216615,94030.0,94017.0,0.3862]
[1746409327486,1.00216615,94030.0,93901.0,0.15017023]
[1746409327487,0.4568,94020.0,93997.0,0.27024698]
[1746409327687,0.3752,94019.0,94011.0,0.1917]
[1746409327889,0.461,94019.0,94011.0,0.1917]
[1746409328194,0.10635638,94018.0,94011.0,0.1917]
[1746409328392,0.20635638,94018.0,94011.0,0.1917]
[1746409328691,0.3752,94017.0,94011.0,0.1917]
[1746409328891,0.3608,94012.0,94011.0,0.1917]
[1746409329090,0.4608,94012.0,94011.0,0.1917]
[1746409329286,0.414,94012.0,94011.0,0.1917]
[1746409329801,0.4608,94012.0,94011.0,0.1917]
[1746409330183,0.4598,94012.0,94011.0,0.1917]
[1746409330688,0.4628,94012.0,94011.0,0.1917]
[1746409331084,0.4658,94012.0,94011.0,0.1927]
[1746409331783,0.419,94012.0,94011.0,0.1927]
[1746409333099,0.4658,94012.0,94011.0,0.1927]
[1746409333297,0.4204,94012.0,94011.0,0.1927]
[1746409334279,0.4658,94012.0,94011.0,0.1927]
[1746409334686,0.73933223,94012.0,93984.0,0.17985894]
[1746409334889,0.3608,93988.0,93987.0,0.2127627]
[1746409335085,0.448,93988.0,93987.0,0.2127627]
[1746409335390,0.448,93988.0,93986.0,0.1888]
[1746409335592,0.1854,93987.0,93986.0,0.4015657]
[1746409335797,0.1854,93987.0,93986.0,0.1888]
[1746409335989,0.1854,93987.0,93986.0,0.4015657]
[1746409336191,0.2854,93987.0,93986.0,0.4015657]
[1746409336490,0.2726,93987.0,93986.0,0.4015657]
[1746409336690,0.2884,93987.0,93986.0,0.4015657]
[1746409337287,0.2914,93987.0,93986.0,0.4015657]
[1746409337491,0.2786,93987.0,93986.0,0.4015657]
[1746409338086,0.2914,93987.0,93986.0,0.4015657]
[1746409339188,0.4788,93987.0,93986.0,0.4015657]
[1746409339392,0.4788,93987.0,93985.0,0.1847]
[1746409339685,0.57239825,93987.0,93977.0,0.05479243]
[1746409339891,0.661022,93987.0,93978.0,0.2416554]
[1746409340092,0.661022,93987.0,93981.0,0.2127769]
[1746409340497,0.673822,93987.0,93978.0,0.1947]
[1746409340698,0.655022,93987.0,93978.0,0.1947]
[1746409340896,0.661022,93987.0,93982.0,0.212774]
[1746409341090,0.673822,93987.0,93979.0,0.2127804]
[1746409341297,0.673822,93987.0,93978.0,0.1947]
[1746409341596,0.4466,93980.0,93977.0,0.00159613]
[1746409341890,0.3696,93979.0,93977.0,0.00159613]
[1746409342097,0.41436504,93979.0,93977.0,0.00159613]
[1746409342293,0.51436504,93979.0,93977.0,0.00159613]
[1746409343199,0.51436504,93979.0,93977.0,0.21840333]
[1746409343398,0.51736504,93979.0,93977.0,0.21840333]
[1746409343598,0.52036504,93979.0,93977.0,0.21840333]
[1746409344394,0.10640788,93978.0,93977.0,0.21840333]
[1746409344800,0.59460788,93978.0,93977.0,0.21840333]
[1746409345793,0.74599168,93978.0,93977.0,0.21840333]
[1746409345993,0.65060788,93978.0,93977.0,0.21840333]
[1746409346299,0.60520788,93978.0,93977.0,0.21840333]
[1746409347002,0.60520788,93978.0,93977.0,0.00159613]
[1746409349101,0.60520788,93978.0,93977.0,0.21438223]
[1746409349102,0.60060788,93978.0,93977.0,0.21438223]
[1746409349297,0.4474,93978.0,93977.0,0.21438223]
[1746409349497,0.4268,93978.0,93977.0,0.21438223]
[1746409349705,0.48,93978.0,93977.0,0.21438223]
[1746409350001,0.006,93978.0,93977.0,0.41308223]
[1746409350206,0.006,93978.0,93977.0,0.71458223]
[1746409353705,0.006,93978.0,93977.0,0.82099022]
[1746409354004,0.006,93978.0,93977.0,0.71458223]
[1746409357196,0.3608,93998.0,93977.0,0.71458223]
[1746409357400,0.3783,93996.0,93995.0,0.2127434]
[1746409357596,0.2,93996.0,93995.0,0.2127434]
[1746409357797,0.04475363,93997.0,93996.0,0.212743]
[1746409358102,0.1,93997.0,93996.0,0.332743]
[1746409358410,0.103,93997.0,93996.0,0.332743]
[1746409358913,0.106,93997.0,93996.0,0.332743]
[1746409360797,0.103,93997.0,93996.0,0.332743]
[1746409361002,0.006,93997.0,93996.0,0.698543]
[1746409361506,0.1909,94009.0,94008.0,0.2127159]
[1746409361711,0.3608,94011.0,94006.0,0.0531797]
[1746409361904,0.3608,94011.0,94010.0,0.2127114]
[1746409362103,0.40641321,94011.0,94010.0,0.3327114]
[1746409362817,0.40641321,94011.0,94010.0,0.5139114]
[1746409363110,0.40941321,94011.0,94010.0,0.5139114]
[1746409364307,0.41241321,94011.0,94010.0,0.5179114]
[1746409364807,0.41241321,94011.0,94010.0,0.3367114]
[1746409365208,0.41241321,94011.0,94010.0,0.3447114]
[1746409367221,0.51241321,94011.0,94010.0,0.3447114]
[1746409367516,0.46561321,94011.0,94010.0,0.3447114]
[1746409367708,0.51241321,94011.0,94010.0,0.3447114]
[1746409367908,0.46561321,94011.0,94010.0,0.3447114]
[1746409368211,0.51241321,94011.0,94010.0,0.3447114]
[1746409368410,0.46561321,94011.0,94010.0,0.3447114]
[1746409369213,0.51241321,94011.0,94010.0,0.012]
[1746409369408,0.51241321,94011.0,94006.0,0.0531797]
[1746409369409,0.51211321,94011.0,94004.0,0.0668203]
[1746409369608,0.51211321,94011.0,93991.0,0.20549192]
[1746409369609,0.3608,94005.0,93991.0,0.20549192]
[1746409369817,0.3608,93992.0,93991.0,0.20549192]
[1746409370113,0.414,93992.0,93991.0,0.20549192]
[1746409370310,0.52177449,93992.0,93991.0,0.20549192]
[1746409371017,0.52177449,93992.0,93982.0,0.0531934]
[1746409371018,0.52077449,93992.0,93988.0,0.2127601]
[1746409371209,0.3862,93991.0,93985.0,0.27065759]
[1746409371410,0.3862,93991.0,93985.0,0.48342429]
[1746409371605,0.3852,93991.0,93985.0,0.48342429]
[1746409371810,0.3852,93991.0,93986.0,0.4110638]
[1746409372322,0.4882,93991.0,93986.0,0.4110638]
[1746409372514,0.4754,93991.0,93986.0,0.4110638]
[1746409373321,0.3608,93987.0,93986.0,0.4110638]
[1746409374818,0.3668,93987.0,93986.0,0.4110638]
[1746409375119,0.4526,93987.0,93986.0,0.4110638]
[1746409375320,0.454,93987.0,93986.0,0.4110638]
[1746409377622,0.4316,93987.0,93986.0,0.4110638]
[1746409378017,0.4668,93987.0,93977.0,0.00159613]
[1746409378220,0.3608,93978.0,93977.0,0.00159613]
[1746409378420,0.4582,93978.0,93977.0,0.00159613]
[1746409378724,0.3934,93978.0,93977.0,0.00159613]
[1746409378920,0.4608,93978.0,93977.0,0.21438223]
[1746409379225,0.1,93978.0,93977.0,0.33438223]
[1746409379416,0.103,93978.0,93977.0,0.33438223]
[1746409380319,0.0562,93978.0,93977.0,0.33438223]
[1746409380515,0.0058,93978.0,93977.0,0.33438223]
[1746409380827,0.006,93978.0,93977.0,0.33438223]
[1746409381222,0.0386,93978.0,93977.0,0.33438223]
[1746409382228,0.0592,93978.0,93977.0,0.33438223]
[1746409382919,0.106,93978.0,93977.0,0.33438223]
[1746409383628,0.10579534,93978.0,93977.0,0.33438223]
[1746409384929,0.05899534,93978.0,93977.0,0.33438223]
[1746409386430,0.05899534,93978.0,93977.0,0.12159613]
[1746409386729,0.09159534,93978.0,93977.0,0.12159613]
[1746409386920,0.10579534,93978.0,93977.0,0.12159613]
[1746409387116,0.10579534,93978.0,93977.0,0.00159613]
[1746409387731,0.21220334,93978.0,93962.0,0.3608]
[1746409387926,0.3608,93970.0,93968.0,0.2128064]
[1746409388125,0.1813,93969.0,93968.0,0.3328064]
[1746409388525,0.2345,93969.0,93968.0,0.3328064]
[1746409388825,0.2671,93969.0,93968.0,0.3328064]
[1746409389025,0.2813,93969.0,93968.0,0.3328064]
[1746409389824,0.33332342,93969.0,93968.0,0.1189684]
[1746409390025,0.43974206,93969.0,93968.0,0.1189684]
[1746409390225,0.43974206,93969.0,93965.0,0.00106422]
[1746409390431,0.39714206,93969.0,93965.0,0.00106422]
[1746409390629,0.44574206,93969.0,93965.0,0.00106422]
[1746409390829,0.40014206,93969.0,93965.0,0.00106422]
[1746409391137,0.44574206,93969.0,93965.0,0.00106422]
[1746409391334,0.2128095,93967.0,93962.0,0.21769797]
[1746409391631,0.2128178,93963.0,93962.0,0.21769797]
[1746409391838,0.22080261,93963.0,93962.0,0.21769797]
[1746409392037,0.32745313,93963.0,93962.0,0.21769797]
[1746409392234,0.11463533,93963.0,93962.0,0.21769797]
[1746409392429,0.22106076,93963.0,93962.0,0.21769797]
[1746409392931,0.79106076,93963.0,93962.0,0.21769797]
[1746409393127,0.05,93959.0,93937.0,0.16479875]
[1746409393328,0.08862375,93950.0,93938.0,0.04689411]
[1746409393524,0.1,93940.0,93939.0,0.04689411]
[1746409393926,0.3608,93954.0,93937.0,0.04689411]
[1746409394230,0.08862375,93950.0,93938.0,0.04689411]
[1746409394426,0.5488,93949.0,93940.0,0.2128683]
[1746409394627,0.5488,93949.0,93941.0,0.2128675]
[1746409394829,0.0326,93941.0,93940.0,0.2660873]
[1746409395025,0.1,93943.0,93942.0,0.2128653]
[1746409395235,0.1,93943.0,93940.0,0.10009145]
[1746409395236,0.3667,93949.0,93948.0,0.2128517]
[1746409395539,0.4199,93949.0,93948.0,0.2128517]
[1746409396139,0.4199,93949.0,93948.0,0.3328517]
[1746409396641,0.4555,93949.0,93948.0,0.3328517]
[1746409397340,0.4585,93949.0,93948.0,0.3328517]
[1746409397836,0.4585,93949.0,93948.0,0.7069517]
[1746409398734,0.2414,93949.0,93948.0,0.7069517]
[1746409399137,0.0592,93949.0,93948.0,0.7069517]
[1746409400541,0.006,93949.0,93948.0,0.7069517]
[1746409400733,0.006,93949.0,93948.0,0.94382636]
[1746409402247,0.006,93949.0,93948.0,1.05026636]
[1746409402450,0.006,93949.0,93948.0,1.0033917]
[1746409402649,0.006,93949.0,93948.0,1.05028466]
[1746409405856,0.0015,93960.0,93959.0,0.2128268]
[1746409406051,0.1932,93960.0,93959.0,0.2128268]
[1746409406252,0.2589,93960.0,93959.0,0.3328268]
[1746409406556,0.0015,93960.0,93959.0,0.3328268]
[1746409406758,0.0015,93960.0,93959.0,0.7087268]
[1746409407053,0.0045,93960.0,93959.0,0.75565034]
[1746409407956,0.0075,93960.0,93959.0,0.75765034]
[1746409409862,0.0075,93960.0,93959.0,0.86407834]
[1746409410562,0.3759,93977.0,93962.0,0.21282]
[1746409410767,0.3759,93977.0,93976.0,0.2127883]
[1746409410969,0.4291,93977.0,93976.0,0.2127883]
[1746409411168,0.4291,93977.0,93976.0,0.3327883]
[1746409412064,0.48509528,93977.0,93976.0,0.3357883]
[1746409412368,0.49313482,93977.0,93976.0,0.3357883]
[1746409412570,0.49313482,93977.0,93976.0,0.3377883]
[1746409412571,0.49613482,93977.0,93976.0,0.3377883]
[1746409413365,0.44293482,93977.0,93976.0,0.3377883]
[1746409414466,0.3608,93989.0,93988.0,0.2127612]
[1746409414768,0.52414703,93989.0,93988.0,0.2127612]
[1746409415669,0.06724703,93989.0,93988.0,0.6929572]
[1746409415878,0.0015,93995.0,93994.0,0.2127476]
[1746409416170,0.0015,93995.0,93994.0,0.3327476]
[1746409416372,0.0015,93995.0,93994.0,0.4391356]
[1746409416760,0.00949561,93995.0,93994.0,0.8120356]
[1746409416966,0.06267727,93995.0,93994.0,0.8120356]
[1746409417169,0.06567727,93995.0,93994.0,0.8180356]
[1746409417976,0.06867727,93995.0,93994.0,0.8280356]
[1746409418169,0.26327727,93995.0,93994.0,0.8280356]
[1746409419963,0.26327727,93995.0,93994.0,1.1888356]
[1746409422269,0.06867727,93995.0,93994.0,1.1888356]
[1746409422475,0.01549561,93995.0,93994.0,1.1888356]
[1746409423073,0.05320451,94003.0,94002.0,0.2127295]
[1746409423266,0.198,94006.0,94004.0,0.2127249]
[1746409423972,0.198,94006.0,94004.0,0.6052249]
[1746409424172,0.05730408,94005.0,94004.0,0.7252249]
[1746409424377,0.00323723,94005.0,94004.0,0.7252249]
[1746409424969,0.00623723,94005.0,94004.0,0.8406009]
[1746409425173,0.00862597,94007.0,94006.0,0.2127204]
[1746409425376,0.00221728,94007.0,94006.0,0.2127204]
[1746409425570,0.00221728,94007.0,94006.0,0.3190964]
[1746409425967,0.00221728,94007.0,94006.0,0.6798964]
[1746409426173,0.00221728,94007.0,94006.0,0.7998964]
[1746409426574,0.1907,94020.0,94019.0,0.212691]
[1746409426779,0.24453419,94020.0,94019.0,0.573491]
[1746409426979,0.25266759,94020.0,94019.0,0.573491]
[1746409427172,0.25266759,94020.0,94019.0,0.693491]
[1746409427572,0.06196759,94020.0,94019.0,0.693491]
[1746409427873,0.1954,94025.0,94024.0,0.2126797]
[1746409428174,0.43755827,94025.0,94024.0,0.3326797]
[1746409428372,0.189,94025.0,94024.0,0.3326797]
[1746409428681,0.1954,94029.0,94024.0,0.226356]
[1746409428884,0.189,94028.0,94027.0,0.2126729]
[1746409429081,0.189,94028.0,94027.0,2.4511729]
[1746409429379,0.189,94028.0,94027.0,2.5711729]
[1746409430585,0.19897134,94028.0,94027.0,2.5881729]
[1746409431084,0.36149774,94058.0,94027.0,2.481852]
[1746409431389,0.1959,94050.0,94049.0,0.5734232]
[1746409431584,0.20369172,94050.0,94049.0,0.5734232]
[1746409432781,0.20569172,94050.0,94049.0,0.5894232]
[1746409432982,2e-08,94050.0,94049.0,0.5894232]
[1746409433187,2e-08,94050.0,94049.0,1.0023512]
[1746409433788,2e-08,94050.0,94049.0,2.5023512]
[1746409434784,0.00200002,94050.0,94049.0,2.5183512]
[1746409435181,0.00200002,94050.0,94049.0,2.4120232]
[1746409435684,0.00200002,94050.0,94049.0,2.2254232]
[1746409435989,0.19510002,94050.0,94049.0,2.2254232]
[1746409436176,0.20298061,94050.0,94049.0,2.1054232]
[1746409436381,0.39378061,94050.0,94049.0,2.1054232]
[1746409445585,0.49378061,94050.0,94049.0,0.2446232]
[1746409445794,0.42638061,94050.0,94049.0,0.2446232]
[1746409446196,0.42828061,94050.0,94049.0,0.2446232]
[1746409446694,0.39378061,94050.0,94049.0,0.2446232]
[1746409447101,0.39378061,94050.0,94049.0,0.3646232]
[1746409447600,0.39378061,94050.0,94049.0,0.5617232]
[1746409448001,0.20298061,94050.0,94049.0,0.5617232]
[1746409448201,0.00988061,94050.0,94049.0,0.5617232]
[1746409448702,0.20868061,94050.0,94049.0,0.5617232]
[1746409449303,0.20868061,94050.0,94049.0,0.56102537]
[1746409451304,0.00988061,94050.0,94049.0,0.56102537]
[1746409451805,0.1869,94051.0,94050.0,0.2126209]
[1746409451806,0.12734561,94051.0,94050.0,0.2126209]
[1746409452107,5e-08,94055.0,94054.0,0.2126119]
[1746409452408,0.1813,94070.0,94069.0,0.212578]
[1746409452611,0.1813,94070.0,94069.0,0.573378]
[1746409452908,0.1831,94085.0,94084.0,0.2125441]
[1746409453095,0.3644,94085.0,94084.0,0.2125441]
[1746409453294,0.62497299,94085.0,94084.0,0.2125441]
[1746409453595,0.47807299,94085.0,94084.0,0.2125441]
[1746409453898,0.37221477,94085.0,94084.0,0.2125441]
[1746409454104,0.37221477,94085.0,94084.0,0.3325441]
[1746409454303,0.18911477,94085.0,94084.0,0.3325441]
[1746409454709,0.19011477,94085.0,94084.0,0.3445441]
[1746409455202,0.20201477,94085.0,94084.0,0.2275441]
[1746409455407,0.20101477,94085.0,94084.0,0.2295441]
[1746409455706,0.20201477,94085.0,94084.0,0.6063441]
[1746409456100,0.20201477,94085.0,94084.0,0.7263441]
[1746409456902,0.00881477,94085.0,94084.0,0.7263441]
[1746409457100,0.00781477,94085.0,94084.0,0.7153441]
[1746409457301,0.3762,94085.0,94084.0,0.7153441]
[1746409458105,0.3762,94085.0,94084.0,0.5953441]
[1746409458309,0.3762,94085.0,94084.0,0.5913441]
[1746409460603,0.38411475,94085.0,94084.0,0.5883441]
[1746409460919,0.38411475,94085.0,94084.0,0.5913441]
[1746409461704,0.38428987,94085.0,94084.0,0.5913441]
[1746409462412,0.38428987,94085.0,94084.0,0.4094441]
[1746409462701,0.74508987,94085.0,94084.0,0.003]
[1746409462909,0.77768987,94085.0,94084.0,0.003]
[1746409463109,0.96508987,94085.0,94084.0,0.003]
[1746409463405,1.53391968,94085.0,94084.0,0.003]
[1746409463598,1.25567788,94085.0,94084.0,0.003]
[1746409463801,1.00567788,94085.0,94084.0,0.2155441]
[1746409464508,1.00397788,94085.0,94084.0,0.2155441]
[1746409464706,0.97307788,94085.0,94084.0,0.2155441]
[1746409465109,1.05887788,94085.0,94084.0,0.003]
[1746409465307,1.05887788,94085.0,94084.0,0.2155441]
[1746409466007,1.02457788,94085.0,94084.0,0.2155441]
[1746409466206,1.00397788,94085.0,94084.0,0.2155441]
[1746409466408,1.02457788,94085.0,94084.0,0.2155441]
[1746409467112,0.91828987,94085.0,94084.0,0.2155441]
[1746409468313,0.86508987,94085.0,94084.0,0.2155441]
[1746409469114,0.74508987,94085.0,94084.0,0.2155441]
[1746409469309,0.84508987,94085.0,94084.0,0.2155441]
[1746409469513,0.84508987,94085.0,94084.0,0.003]
[1746409469714,0.77768987,94085.0,94084.0,0.2155441]
[1746409470210,0.89768987,94085.0,94084.0,0.2155441]
[1746409470416,0.95088987,94085.0,94084.0,0.2155441]
[1746409471313,0.83088987,94085.0,94084.0,0.2155441]
[1746409471906,0.84508987,94085.0,94084.0,0.2155441]
[1746409472216,0.96508987,94085.0,94084.0,0.003]
[1746409472514,0.95088987,94085.0,94084.0,0.003]
[1746409472815,0.95088987,94085.0,94084.0,0.2155441]
[1746409473111,0.96508987,94085.0,94084.0,0.003]
[1746409473619,0.86508987,94085.0,94084.0,0.003]
[1746409475820,0.86508987,94085.0,94084.0,0.2155441]
[1746409476117,0.86508987,94085.0,94084.0,0.003]
[1746409476711,0.96508987,94085.0,94084.0,0.003]
[1746409476912,0.96508987,94085.0,94084.0,0.2155441]
[1746409477217,1.01508987,94085.0,94084.0,0.003]
[1746409477409,1.10088987,94085.0,94084.0,0.003]
[1746409477610,1.11508987,94085.0,94084.0,0.003]
[1746409477811,1.10088987,94085.0,94084.0,0.003]
[1746409478006,1.10088987,94085.0,94084.0,0.2155441]
[1746409478211,1.11508987,94085.0,94084.0,0.2155441]
[1746409478413,1.06828987,94085.0,94084.0,0.003]
[1746409479321,1.06828987,94085.0,94084.0,0.2155441]
[1746409479519,1.11508987,94085.0,94084.0,0.003]
[1746409480417,1.32766531,94085.0,94084.0,0.003]
[1746409482919,0.0531375,94082.0,94063.0,0.0531477]
[1746409483123,0.3608,94067.0,94063.0,0.0531477]
[1746409483328,0.549,94066.0,94065.0,0.0531467]
[1746409483521,0.6022,94066.0,94065.0,0.0531467]
[1746409483714,0.649,94066.0,94065.0,0.0531467]
[1746409483915,0.6022,94066.0,94065.0,0.0531467]
[1746409484115,0.6022,94066.0,94065.0,0.212587]
[1746409484321,0.649,94066.0,94065.0,0.212587]
[1746409484516,0.6022,94066.0,94065.0,0.212587]
[1746409484824,0.649,94066.0,94065.0,0.212587]
[1746409485020,0.649,94066.0,94065.0,0.219587]
[1746409485222,0.6022,94066.0,94065.0,0.219587]
[1746409485424,0.4216,94066.0,94065.0,0.219587]
[1746409485623,0.4542,94066.0,94065.0,0.219587]
[1746409485824,0.4216,94066.0,94065.0,0.415487]
[1746409486121,0.4542,94066.0,94065.0,0.415487]
[1746409486831,0.4542,94066.0,94065.0,0.419487]
[1746409489131,0.4684,94066.0,94065.0,0.419487]
[1746409489334,0.4542,94066.0,94065.0,0.419487]
[1746409489631,0.4684,94066.0,94065.0,0.419487]
[1746409489826,0.4684,94066.0,94065.0,0.011]
[1746409490418,0.6619,94066.0,94065.0,0.011]
[1746409491224,0.7119,94066.0,94065.0,0.011]
[1746409492430,0.7119,94066.0,94065.0,0.2004]
[1746409493435,0.6651,94066.0,94065.0,0.2004]
[1746409494135,0.7851,94066.0,94065.0,0.2004]
[1746409495035,0.8319,94066.0,94065.0,0.2004]
[1746409495429,0.8319,94066.0,94065.0,0.1964]
[1746409495628,0.7851,94066.0,94065.0,0.2014]
[1746409495934,0.7851,94066.0,94065.0,0.414987]
[1746409496730,0.8319,94066.0,94065.0,0.2024]
[1746409497227,0.8319,94066.0,94065.0,0.013]
[1746409497228,1.2853169,94066.0,94065.0,0.013]
[1746409497938,1.3853169,94066.0,94065.0,0.013]
[1746409498236,1.5053169,94066.0,94065.0,0.013]
[1746409498531,1.5053169,94066.0,94065.0,0.008]
[1746409498831,1.69260481,94066.0,94047.0,0.10018454]
[1746409499032,0.3608,94048.0,94047.0,0.03208858]
[1746409499334,0.4364,94048.0,94047.0,0.03208858]
[1746409499530,0.4324,94048.0,94047.0,0.03208858]
[1746409499726,0.4324,94048.0,94041.0,0.6016391]
[1746409499932,0.05,94043.0,94042.0,0.212639]
[1746409500236,0.0826,94043.0,94042.0,0.405839]
[1746409500535,0.13509873,94043.0,94042.0,0.405839]
[1746409500730,0.08509873,94043.0,94042.0,0.405839]
[1746409500922,0.07809873,94043.0,94042.0,0.405839]